fUST/lending_fUST_20250531
["ID","MTS","AMOUNT","RATE_DAILY","PERIOD"]
[363214634,1748625052785,-430.0,0.00019452,2]
[363214636,1748625052794,-2345.1,0.00019452,2]
[363214638,1748625052803,-430.0,0.00019452,2]
[363214640,1748625052813,-430.0,0.00019452,2]
[363214641,1748625052822,-430.0,0.00019452,2]
[363214643,1748625052831,-1138.57,0.00019452,2]
[363214645,1748625052840,-430.0,0.00019452,2]
[363214647,1748625052849,-430.0,0.00019452,2]
[363214649,1748625052859,-1256.11,0.00019452,2]
[363214651,1748625052868,-430.0,0.00019452,2]
[363214653,1748625052878,-430.0,0.00019452,2]
[363214655,1748625052887,-430.0,0.00019452,2]
[363214657,1748625052896,-430.0,0.00019452,2]
[363214659,1748625052905,-518.61,0.00019452,2]
[363214661,1748625052914,-430.0,0.00019452,2]
[363214663,1748625052925,-430.0,0.00019452,2]
[363214665,1748625052934,-430.0,0.00019452,2]
[363214667,1748625052943,-3401.26,0.00019452,2]
[363214669,1748625052953,-430.0,0.00019452,2]
[363214670,1748625052962,-443.9,0.00019452,2]
[363214672,1748625052971,-430.0,0.00019452,2]
[363214674,1748625052984,-430.0,0.00019452,2]
[363214676,1748625052993,-430.0,0.00019452,2]
[363214678,1748625053003,-430.0,0.00019452,2]
[363214680,1748625053012,-430.0,0.00019452,2]
[363214682,1748625053023,-430.0,0.00019452,2]
[363214684,1748625053032,-152.695238,0.00019452,2]
[363214686,1748625053041,-152.695238,0.00019452,2]
[363214688,1748625053051,-430.0,0.00019452,2]
[363214690,1748625053061,-430.0,0.00019452,2]
[363214692,1748625053070,-7329.51,0.00019452,2]
[363214694,1748625053079,-152.695238,0.00019452,2]
[363214696,1748625053088,-152.695238,0.00019452,2]
[363214698,1748625053098,-430.0,0.00019452,2]
[363214700,1748625053107,-430.0,0.00019452,2]
[363214702,1748625053115,-1873.17,0.00019452,2]
[363214704,1748625053125,-402.41880344,0.00019452,2]
[363214706,1748625053134,-437.35328955,0.00019452,2]
[363214708,1748625053144,-5300.78,0.00019452,2]
[363214709,1748625053153,-430.0,0.00019452,2]
[363214712,1748625053164,-430.0,0.00019452,2]
[363214714,1748625053176,-523.71,0.00019452,2]
[363214716,1748625053185,-430.0,0.00019452,2]
[363214718,1748625053195,-430.0,0.00019452,2]
[363214720,1748625053204,-430.0,0.00019452,2]
[363214722,1748625053214,-1198.51,0.00019452,2]
[363214724,1748625053223,-430.0,0.00019452,2]
[363214726,1748625053233,-430.0,0.00019452,2]
[363214728,1748625053242,-368.879156,0.00019452,2]
[363214729,1748625053251,-368.879156,0.00019452,2]
[363214731,1748625053260,-430.0,0.00019452,2]
[363214733,1748625053270,-1607.36,0.00019452,2]
[363214735,1748625053279,-368.879156,0.00019452,2]
[363214737,1748625053289,-460.05217875,0.00019452,2]
[363214739,1748625053299,-368.879156,0.00019452,2]
[363214741,1748625053310,-430.0,0.00019452,2]
[363214743,1748625053319,-68.45943184,0.00019452,2]
[363214764,1748625053519,-361.54056816,0.00019452,2]
[363214766,1748625053529,-430.0,0.00019452,2]
[363214768,1748625053538,-430.0,0.00019452,2]
[363214770,1748625053548,-430.0,0.00019452,2]
[363214772,1748625053558,-430.0,0.00019452,2]
[363214774,1748625053567,-2123.23,0.00019452,2]
[363214776,1748625053577,-430.0,0.00019452,2]
[363214778,1748625053586,-430.0,0.00019452,2]
[363214780,1748625053595,-1254.3,0.00019452,2]
[363214782,1748625053604,-430.0,0.00019452,2]
[363214784,1748625053614,-430.0,0.00019452,2]
[363214786,1748625053623,-430.0,0.00019452,2]
[363214788,1748625053633,-768.83,0.00019452,2]
[363214789,1748625053642,-326.93239264,0.00019452,2]
[363214791,1748625053651,-430.0,0.00019452,2]
[363214793,1748625053661,-430.0,0.00019452,2]
[363214795,1748625053671,-275.05136514,0.00019452,2]
[363214797,1748625053680,-491.43523632,0.00019452,2]
[363214799,1748625053689,-430.0,0.00019452,2]
[363214801,1748625053698,-430.0,0.00019452,2]
[363214803,1748625053708,-6136.93,0.00019452,2]
[363214805,1748625053717,-430.0,0.00019452,2]
[363214807,1748625053727,-508.85,0.00019452,2]
[363214809,1748625053736,-430.0,0.00019452,2]
[363214811,1748625053745,-430.0,0.00019452,2]
[363214813,1748625053754,-430.0,0.00019452,2]
[363214815,1748625053763,-430.0,0.00019452,2]
[363214817,1748625053773,-430.0,0.00019452,2]
[363214819,1748625053782,-430.0,0.00019452,2]
[363214821,1748625053791,-430.0,0.00019452,2]
[363214823,1748625053801,-1180.37,0.00019452,2]
[363214825,1748625053811,-695.89,0.00019452,2]
[363214827,1748625053820,-430.0,0.00019452,2]
[363214829,1748625053830,-430.0,0.00019452,2]
[363214831,1748625053839,-430.0,0.00019452,2]
[363214833,1748625053848,-430.0,0.00019452,2]
[363214835,1748625053857,-849.57,0.00019452,2]
[363214837,1748625053866,-430.0,0.00019452,2]
[363214839,1748625053876,-430.0,0.00019452,2]
[363214841,1748625053885,-430.0,0.00019452,2]
[363214842,1748625053895,-430.0,0.00019452,2]
[363214844,1748625053904,-430.0,0.00019452,2]
[363214846,1748625053914,-1772.91,0.00019452,2]
[363214848,1748625053925,-1382.51,0.00019452,2]
[363214850,1748625053935,-430.0,0.00019452,2]
[363214852,1748625053944,-430.0,0.00019452,2]
[363214854,1748625053954,-838.4,0.00019452,2]
[363214856,1748625053963,-430.0,0.00019452,2]
[363214858,1748625053974,-430.0,0.00019452,2]
[363214860,1748625053988,-430.0,0.00019452,2]
[363214862,1748625053998,-151.0,0.00019452,2]
[363214864,1748625054008,-151.0,0.00019452,2]
[363214866,1748625054018,-430.0,0.00019452,2]
[363214868,1748625054028,-498.14,0.00019452,2]
[363214870,1748625054037,-430.0,0.00019452,2]
[363214872,1748625054047,-430.0,0.00019452,2]
[363214874,1748625054057,-576.33,0.00019452,2]
[363214876,1748625054068,-1397.36,0.00019452,2]
[363214878,1748625054078,-430.0,0.00019452,2]
[363214880,1748625054088,-430.0,0.00019452,2]
[363214882,1748625054097,-528.69121244,0.00019452,2]
[363214884,1748625054107,-739.41,0.00019452,2]
[363214886,1748625054116,-430.0,0.00019452,2]
[363214888,1748625054125,-430.0,0.00019452,2]
[363214890,1748625054135,-430.0,0.00019452,2]
[363214892,1748625054144,-415.26484698,0.00019452,2]
[363214894,1748625054154,-430.0,0.00019452,2]
[363214896,1748625054163,-430.0,0.00019452,2]
[363214897,1748625054173,-430.0,0.00019452,2]
[363214899,1748625054182,-430.0,0.00019452,2]
[363214901,1748625054192,-1958.75,0.00019452,2]
[363214903,1748625054201,-1689.0,0.00019452,2]
[363214905,1748625054211,-601.88,0.00019452,2]
[363214907,1748625054221,-430.0,0.00019452,2]
[363214909,1748625054231,-500.0,0.00019452,2]
[363214911,1748625054241,-430.0,0.00019452,2]
[363214913,1748625054251,-430.0,0.00019452,2]
[363214915,1748625054262,-460.07,0.00019452,2]
[363214917,1748625054271,-5566.54,0.00019452,2]
[363214919,1748625054280,-1603.35,0.00019452,2]
[363214921,1748625054290,-430.0,0.00019452,2]
[363214923,1748625054299,-430.0,0.00019452,2]
[363214925,1748625054307,-285.70639393,0.00019452,2]
[363214927,1748625054317,-430.0,0.00019452,2]
[363214929,1748625054325,-1432.37,0.00019452,2]
[363214931,1748625054335,-508.72327715,0.00019452,2]
[363214933,1748625054345,-818.49,0.00019452,2]
[363214935,1748625054355,-3496.1,0.00019452,2]
[363214937,1748625054363,-916.5,0.00019452,2]
[363214939,1748625054373,-430.0,0.00019452,2]
[363214941,1748625054383,-3103.49,0.00019452,2]
[363214943,1748625054393,-430.0,0.00019452,2]
[363214945,1748625054402,-430.0,0.00019452,2]
[363214946,1748625054411,-430.0,0.00019452,2]
[363214949,1748625054422,-430.0,0.00019452,2]
[363214961,1748625054532,-1134.96,0.00019452,2]
[363214963,1748625054541,-430.0,0.00019452,2]
[363214965,1748625054551,-3349.24,0.00019452,2]
[363214967,1748625054560,-430.0,0.00019452,2]
[363214968,1748625054570,-430.0,0.00019452,2]
[363214969,1748625054579,-495.8,0.00019452,2]
[363214970,1748625054589,-430.0,0.00019452,2]
[363214971,1748625054598,-665.98,0.00019452,2]
[363214972,1748625054607,-430.0,0.00019452,2]
[363214973,1748625054616,-506.18,0.00019452,2]
[363214974,1748625054626,-4274.81,0.00019452,2]
[363214975,1748625054635,-505.75232097,0.00019452,2]
[363214976,1748625054645,-430.0,0.00019452,2]
[363214977,1748625054654,-2067.57,0.00019452,2]
[363214978,1748625054664,-430.0,0.00019452,2]
[363214979,1748625054675,-430.0,0.00019452,2]
[363214980,1748625054685,-430.0,0.00019452,2]
[363214981,1748625054694,-430.0,0.00019452,2]
[363214982,1748625054704,-430.0,0.00019452,2]
[363214983,1748625054714,-430.0,0.00019452,2]
[363214984,1748625054724,-430.0,0.00019452,2]
[363214985,1748625054734,-430.0,0.00019452,2]
[363214986,1748625054743,-326.95460916,0.00019452,2]
[363214987,1748625054752,-430.0,0.00019452,2]
[363214988,1748625054762,-430.0,0.00019452,2]
[363214989,1748625054771,-430.0,0.00019452,2]
[363214990,1748625054785,-1494.75,0.00019452,2]
[363214991,1748625054795,-430.0,0.00019452,2]
[363214992,1748625054804,-430.0,0.00019452,2]
[363214993,1748625054814,-430.0,0.00019452,2]
[363214994,1748625054823,-430.0,0.00019452,2]
[363214995,1748625054834,-430.0,0.00019452,2]
[363214996,1748625054844,-430.0,0.00019452,2]
[363214998,1748625054853,-181.08010149,0.00019453,2]
[363215000,1748625054862,-1094.50188433,0.00019477,2]
[363215002,1748625054871,-504.704995,0.00019477,2]
[363215004,1748625054881,-504.704995,0.00019477,2]
[363215006,1748625054890,-151.0,0.00019477,2]
[363215008,1748625054899,-1000.0,0.00019488,2]
[363215010,1748625054911,-3652.98,0.000195,2]
[363215012,1748625054922,-1001.34052729,0.000195,2]
[363215014,1748625054932,-34140.63353529,0.000195,2]
[363215016,1748625054941,-151.0,0.000195,2]
[363215018,1748625054950,-151.0,0.000195,2]
[363215020,1748625054959,-224.694895,0.000195,2]
[363215021,1748625054968,-224.694895,0.000195,2]
[363215023,1748625054978,-152.695238,0.000195,2]
[363215025,1748625054990,-152.695238,0.000195,2]
[363215027,1748625055000,-368.879156,0.000195,2]
[363215029,1748625055011,-368.879156,0.000195,2]
[363215032,1748625055022,-151.0,0.000195,2]
[363215034,1748625055032,-187.78006525,0.00019508,2]
[363215036,1748625055042,-7002.66077784,0.00019521,2]
[363215038,1748625055054,-2069.60181305,0.00019521,2]
[363215040,1748625055067,-160.980055,0.00019521,2]
[363215042,1748625055076,-230.669102,0.00019521,2]
[363215044,1748625055085,-148.99285563,0.00019521,2]
[363215059,1748625055223,-81.67624637,0.00019521,2]
[363215061,1748625055233,-2775.682077,0.00019521,2]
[363215063,1748625055242,-153.81313819,0.00019521,2]
[363215065,1748625055254,-701.39368558,0.00019521,2]
[363215067,1748625055266,-1920.47525323,0.00019521,2]
[363215069,1748625055276,-374.48598863,0.00019521,2]
[363217563,1748625445499,800000.0,0.00024649,120]
[363217576,1748625616768,1113.45793361,0.00016,2]
[363217577,1748625616791,3886.54206639,0.00016,2]
[363217586,1748625923435,1000.0,0.0002465,120]
[363217587,1748625928406,1000.0,0.0002465,120]
[363217588,1748625929379,1000.0,0.0002465,120]
[363217589,1748625937402,545.0,0.0002465,120]
[363217606,1748626009525,4479.86126694,0.00016,2]
[363217607,1748626009548,520.13873306,0.00016,2]
[363217616,1748626041120,-229.00963628,0.00016305,2]
[363217680,1748626045110,-471.11659738,0.00016305,2]
[363217684,1748626074309,364.727885,0.00013699,2]
[363217686,1748626096576,2278.24034531,0.000125,2]
[363217691,1748626124111,2062.18233183,0.00015,2]
[363217700,1748626146238,-4299.87376634,0.00016305,2]
[363217701,1748626146259,-350.57257841,0.00016305,2]
[363217702,1748626146280,-524.386043,0.0001647,2]
[363217703,1748626146300,-200.78402831,0.00016625,2]
[363217704,1748626146320,-221.8986035,0.00016662,2]
[363217705,1748626146341,-181.8290686,0.00016734,2]
[363217706,1748626146365,-1925.5864943,0.00016865,2]
[363217707,1748626146386,-300.0,0.0001704,2]
[363217708,1748626146407,-1200.0,0.00017041,2]
[363217709,1748626146429,-300.0,0.00017041,2]
[363217710,1748626146451,-50000.0,0.00017042,2]
[363217711,1748626146471,-300.0,0.00017042,2]
[363217712,1748626146491,-300.0,0.00017042,2]
[363217713,1748626146511,-8705.06478737,0.00017045,2]
[363217717,1748626164086,-595.74622527,0.00016875,2]
[363217737,1748626236750,-4404.25377473,0.00016875,2]
[363217738,1748626236761,-1202.4071037,0.00016931,2]
[363217739,1748626236771,-1294.93521263,0.00017045,2]
[363217740,1748626236781,-3026.20246251,0.00017055,2]
[363217838,1748626238707,-52.3462886,0.00017055,2]
[363217840,1748626238719,-5348.59681349,0.00017055,2]
[363217842,1748626238735,-2476.78173746,0.00017055,2]
[363217843,1748626238746,-432.34794334,0.00017055,2]
[363217898,1748626240148,-13563.7247546,0.00017055,2]
[363217899,1748626240157,-250.0,0.00017317,2]
[363217900,1748626240166,-777.02245091,0.00017639,2]
[363217902,1748626240175,-1200.0,0.00017681,2]
[363217904,1748626240188,-1142.6300484,0.00017682,2]
[363217905,1748626240198,-182.95,0.00018,2]
[363217906,1748626240207,-711.89561958,0.00018,2]
[363217907,1748626240216,-300.0,0.00018087,2]
[363217909,1748626240225,-300.0,0.00018087,2]
[363217911,1748626240234,-300.0,0.00018087,2]
[363217912,1748626240245,-500.0,0.00018087,2]
[363217913,1748626240254,-500.0,0.00018087,2]
[363217914,1748626240264,-500.0,0.00018087,2]
[363217915,1748626240273,-500.0,0.00018087,2]
[363217916,1748626240282,-500.0,0.00018087,2]
[363217917,1748626240292,-500.0,0.00018087,2]
[363217918,1748626240301,-500.0,0.00018087,2]
[363217919,1748626240311,-500.0,0.00018087,2]
[363217920,1748626240320,-500.0,0.00018087,2]
[363217921,1748626240329,-179.89596775,0.00018087,2]
[363217922,1748626240339,-500.0,0.00018087,2]
[363217923,1748626240349,-500.0,0.00018087,2]
[363217924,1748626240358,-500.0,0.00018087,2]
[363217925,1748626240367,-500.0,0.00018087,2]
[363217926,1748626240377,-593.78931383,0.00018087,2]
[363217927,1748626240387,-500.0,0.00018087,2]
[363217928,1748626240397,-500.0,0.00018087,2]
[363217929,1748626240406,-500.0,0.00018087,2]
[363217930,1748626240415,-500.0,0.00018087,2]
[363217931,1748626240424,-500.0,0.00018087,2]
[363217932,1748626240437,-500.0,0.00018087,2]
[363217933,1748626240446,-500.0,0.00018087,2]
[363217934,1748626240461,-500.0,0.00018087,2]
[363217935,1748626240471,-406.63337193,0.00018087,2]
[363217936,1748626240480,-500.0,0.00018087,2]
[363217937,1748626240490,-500.0,0.00018087,2]
[363217938,1748626240499,-1000.48023051,0.00018089,2]
[363217939,1748626240509,-207.4,0.0001816,2]
[363217940,1748626240519,-300.0,0.0001816,2]
[363217941,1748626240529,-300.0,0.0001816,2]
[363217942,1748626240539,-300.0,0.0001816,2]
[363217943,1748626240549,-300.0,0.0001816,2]
[363217944,1748626240561,-300.0,0.0001816,2]
[363217945,1748626240570,-300.0,0.0001816,2]
[363217946,1748626240580,-300.0,0.0001816,2]
[363217947,1748626240589,-360.92770792,0.0001816,2]
[363217948,1748626240598,-5000.0,0.0001816,2]
[363217949,1748626240607,-1207.93,0.00018409,2]
[363217950,1748626240617,-420.0,0.00018612,2]
[363217951,1748626240626,-5000.0,0.00018708,2]
[363217952,1748626240635,-8089.80302423,0.000189,2]
[363217953,1748626240659,-3290.77000001,0.00016885,2]
[363217954,1748626240670,-936.207534,0.00016885,2]
[363217971,1748626242946,-773.02246599,0.00016885,2]
[363217972,1748626242956,-340.52944617,0.000189,2]
[363217973,1748626242965,-153.0,0.00018959,2]
[363217974,1748626242974,-342.2965256,0.00018959,2]
[363217975,1748626242983,-158.368211,0.00018959,2]
[363217976,1748626242992,-1500.0,0.00019,3]
[363217977,1748626243001,-300.0,0.00019106,2]
[363217979,1748626243010,-7601.86749924,0.00019107,2]
[363217989,1748626246427,-828.46497088,0.00019107,2]
[363217990,1748626246441,-512.79628993,0.00019173,2]
[363217992,1748626246451,-443.13339299,0.00019173,2]
[363217994,1748626246460,-500.0,0.00019173,2]
[363217996,1748626246470,-500.0,0.00019173,2]
[363217998,1748626246480,-500.0,0.00019173,2]
[363218000,1748626246489,-500.0,0.00019173,2]
[363218001,1748626246498,-500.0,0.00019173,2]
[363218002,1748626246508,-500.0,0.00019173,2]
[363218003,1748626246517,-500.0,0.00019173,2]
[363218004,1748626246526,-464.51516111,0.00019173,2]
[363218005,1748626246535,-500.0,0.00019173,2]
[363218006,1748626246545,-212.14337321,0.00019177,2]
[363218007,1748626246554,-500.0,0.00019177,2]
[363218008,1748626246563,-500.0,0.00019177,2]
[363218009,1748626246573,-500.0,0.00019177,2]
[363218010,1748626246582,-579.04770068,0.00019177,2]
[363218011,1748626246591,-500.0,0.00019177,2]
[363218012,1748626246601,-500.0,0.00019177,2]
[363218013,1748626246610,-500.0,0.00019177,2]
[363218014,1748626246619,-500.0,0.00019177,2]
[363218015,1748626246628,-500.0,0.00019177,2]
[363218016,1748626246638,-500.0,0.00019177,2]
[363218017,1748626246647,-500.0,0.00019177,2]
[363218018,1748626246656,-500.0,0.00019177,2]
[363218019,1748626246665,-500.0,0.00019177,2]
[363218020,1748626246674,-500.0,0.00019177,2]
[363218021,1748626246683,-500.0,0.00019177,2]
[363218022,1748626246702,-500.0,0.00019177,2]
[363218023,1748626246716,-1514.779473,0.00019178,2]
[363218024,1748626246725,-430.0,0.00019178,2]
[363218025,1748626246735,-418.63365746,0.00019178,2]
[363218026,1748626246744,-430.0,0.00019178,2]
[363218027,1748626246753,-430.0,0.00019178,2]
[363218028,1748626246762,-430.0,0.00019178,2]
[363218030,1748626246771,-151.0,0.00019178,2]
[363218031,1748626246780,-151.0,0.00019178,2]
[363218032,1748626246789,-151.0,0.00019178,2]
[363218033,1748626246798,-151.0,0.00019178,2]
[363218034,1748626246808,-151.0,0.00019178,2]
[363218035,1748626246817,-151.0,0.00019178,2]
[363218036,1748626246826,-151.0,0.00019178,2]
[363218037,1748626246835,-151.0,0.00019178,2]
[363218038,1748626246846,-430.0,0.00019178,2]
[363218039,1748626246855,-430.0,0.00019178,2]
[363218040,1748626246864,-430.0,0.00019178,2]
[363218041,1748626246873,-430.0,0.00019178,2]
[363218042,1748626246883,-430.0,0.00019178,2]
[363218043,1748626246893,-430.0,0.00019178,2]
[363218044,1748626246903,-396.15250228,0.00019178,2]
[363218122,1748626855202,3141.11403813,0.00016,2]
[363218123,1748626855227,1858.88596187,0.00016,2]
[363218135,1748627168734,346.49149,0.00013699,2]
[363218173,1748627242878,6161.02588146,0.00015927,2]
[363218174,1748627242901,8366.40333333,0.00015927,2]
[363218175,1748627242922,8366.40333333,0.00015927,2]
[363218176,1748627242943,2006.16745188,0.00015927,2]
[363218200,1748627359233,-5000.0,0.00016175,2]
[363218201,1748627359253,-371.34938192,0.00016238,2]
[363218202,1748627359273,-616.7376979,0.00016338,2]
[363218203,1748627359293,-160.0,0.0001687,2]
[363218204,1748627359313,-618.073677,0.00016991,2]
[363218205,1748627359334,-300.0,0.00017041,2]
[363218206,1748627359356,-1200.0,0.00017042,2]
[363218207,1748627359376,-300.0,0.00017042,2]
[363218208,1748627359397,-222.42062278,0.00017042,2]
[363218209,1748627359418,-430.0,0.00017042,2]
[363218210,1748627359439,-300.0,0.00017043,2]
[363218211,1748627359465,-300.0,0.00017043,2]
[363218212,1748627359485,-430.0,0.00017043,2]
[363218213,1748627359507,-430.0,0.00017043,2]
[363218214,1748627359527,-477.5447693,0.00017043,2]
[363218215,1748627359547,-492.00722823,0.00017043,2]
[363218216,1748627359566,-415.96720372,0.00017043,2]
[363218217,1748627359587,-500.0,0.00017043,2]
[363218218,1748627359607,-500.0,0.00017043,2]
[363218219,1748627359627,-500.0,0.00017043,2]
[363218220,1748627359647,-500.0,0.00017043,2]
[363218221,1748627359675,-500.0,0.00017043,2]
[363218222,1748627359696,-405.07839534,0.00017043,2]
[363218223,1748627359716,-180.88484536,0.00017043,2]
[363218224,1748627359736,-500.0,0.00017043,2]
[363218225,1748627359756,-566.38682972,0.00017043,2]
[363218226,1748627359781,-500.0,0.00017043,2]
[363218227,1748627359801,-500.0,0.00017043,2]
[363218228,1748627359822,-610.37914055,0.00017043,2]
[363218229,1748627359844,-430.0,0.00017043,2]
[363218230,1748627359866,-430.0,0.00017043,2]
[363218231,1748627359885,-610.09,0.00017043,2]
[363218232,1748627359906,-13119.26199993,0.00017043,2]
[363218233,1748627359926,-666.89,0.00017044,2]
[363218234,1748627359948,-430.0,0.00017044,2]
[363218235,1748627359969,-1618.62,0.00017044,2]
[363218236,1748627359991,-7464.33,0.00017044,2]
[363218237,1748627360013,-430.0,0.00017044,2]
[363218238,1748627360034,-2060.94740867,0.00017044,2]
[363218239,1748627370627,5000.0,0.00016,2]
[363218240,1748627386816,1360.23588145,0.00016,2]
[363218241,1748627386838,3639.76411855,0.00016,2]
[363218261,1748627431996,-4396.19198468,0.0001619,2]
[363218268,1748627432224,-603.80801532,0.0001619,2]
[363218269,1748627432235,-621.6503451,0.00016354,2]
[363218270,1748627432244,-300.0,0.00017041,2]
[363218271,1748627432254,-190.0,0.00017041,2]
[363218272,1748627432263,-300.0,0.00017041,2]
[363218273,1748627432273,-1200.0,0.00017041,2]
[363218274,1748627432284,-430.0,0.00017042,2]
[363218275,1748627432293,-430.0,0.00017042,2]
[363218276,1748627432303,-400.0,0.00017042,2]
[363218277,1748627432312,-430.0,0.00017042,2]
[363218278,1748627432322,-430.0,0.00017042,2]
[363218279,1748627432331,-430.0,0.00017042,2]
[363218280,1748627432341,-259.88735629,0.00017042,2]
[363218281,1748627432351,-430.0,0.00017042,2]
[363218282,1748627432361,-430.97166421,0.00017042,2]
[363218283,1748627432371,-832.48,0.00017043,2]
[363218284,1748627432380,-4114.61,0.00017043,2]
[363218285,1748627432390,-509.3,0.00017043,2]
[363218286,1748627432399,-276.64020383,0.00017216,2]
[363218287,1748627432410,-430.0,0.00017316,2]
[363218288,1748627432419,-430.0,0.00017316,2]
[363218289,1748627432429,-422.05714651,0.00017316,2]
[363218290,1748627432439,-430.0,0.00017316,2]
[363218291,1748627432448,-430.0,0.00017316,2]
[363218292,1748627432458,-430.0,0.00017316,2]
[363218293,1748627432468,-402.16107037,0.00017316,2]
[363218294,1748627432477,-430.0,0.00017316,2]
[363218295,1748627432488,-430.0,0.00017316,2]
[363218296,1748627432497,-500.0,0.00017316,2]
[363218297,1748627432507,-952.05,0.00017316,2]
[363218298,1748627432516,-729.91,0.00017316,2]
[363218299,1748627432525,-430.0,0.00017316,2]
[363218300,1748627432535,-500.0,0.00017316,2]
[363218301,1748627432545,-430.0,0.00017316,2]
[363218302,1748627432555,-430.0,0.00017316,2]
[363218303,1748627432565,-769.57,0.00017316,2]
[363218304,1748627432575,-430.0,0.00017316,2]
[363218305,1748627432585,-430.0,0.00017316,2]
[363218306,1748627432594,-430.0,0.00017316,2]
[363218307,1748627432603,-346.08133367,0.00017316,2]
[363218308,1748627432613,-430.0,0.00017316,2]
[363218309,1748627432623,-430.0,0.00017316,2]
[363218310,1748627432632,-947.32,0.00017316,2]
[363218311,1748627432641,-430.0,0.00017316,2]
[363218312,1748627432650,-356.97044839,0.00017316,2]
[363218350,1748627437959,-430.0,0.00017315,2]
[363218351,1748627437970,-154.83445518,0.00017315,2]
[363218352,1748627437980,-73.02955161,0.00017316,2]
[363218353,1748627437991,-430.0,0.00017316,2]
[363218354,1748627438000,-430.0,0.00017316,2]
[363218355,1748627438010,-430.0,0.00017316,2]
[363218356,1748627438020,-430.0,0.00017316,2]
[363218357,1748627438029,-430.0,0.00017316,2]
[363218358,1748627438039,-430.0,0.00017316,2]
[363218359,1748627438048,-430.0,0.00017316,2]
[363218360,1748627438059,-430.0,0.00017316,2]
[363218361,1748627438068,-430.0,0.00017316,2]
[363218362,1748627438257,-430.0,0.00017316,2]
[363218363,1748627438267,-868.62936774,0.00017316,2]
[363218364,1748627438279,-976.81063226,0.00017316,2]
[363218365,1748627438289,-430.0,0.00017316,2]
[363218366,1748627438299,-1148.58,0.00017316,2]
[363218367,1748627438310,-310.0,0.00017316,2]
[363218368,1748627438320,-430.0,0.00017316,2]
[363218369,1748627438329,-430.0,0.00017316,2]
[363218370,1748627438339,-430.0,0.00017316,2]
[363218371,1748627438349,-430.0,0.00017316,2]
[363218372,1748627438359,-430.0,0.00017316,2]
[363218373,1748627438368,-402.03221623,0.00017316,2]
[363218374,1748627438377,-430.0,0.00017317,2]
[363218375,1748627438387,-430.0,0.00017317,2]
[363218376,1748627438397,-610.09,0.00017317,2]
[363218377,1748627438407,-832.48,0.00017317,2]
[363218378,1748627438416,-4114.61,0.00017317,2]
[363218379,1748627438426,-509.3,0.00017317,2]
[363218380,1748627438435,-430.0,0.00017464,2]
[363218381,1748627438445,-430.0,0.00017464,2]
[363218382,1748627438454,-430.0,0.00017464,2]
[363218383,1748627438464,-165.48957521,0.00017464,2]
[363218384,1748627438473,-430.0,0.00017464,2]
[363218385,1748627438483,-430.0,0.00017464,2]
[363218386,1748627438494,-423.49058654,0.00017464,2]
[363218387,1748627438504,-430.0,0.00017464,2]
[363218388,1748627438513,-430.0,0.00017464,2]
[363218389,1748627438522,-450.0,0.00017464,2]
[363218390,1748627438531,-430.0,0.00017464,2]
[363218391,1748627438541,-450.0,0.00017464,2]